fUSD/lending_fUSD_20250530
["ID","MTS","AMOUNT","RATE_DAILY","PERIOD"]
[363195033,1748619149865,-3116.89,0.00025753,2]
[363195034,1748619149875,-1061.77,0.00025753,2]
[363195035,1748619149884,-1233.85,0.00025753,2]
[363195036,1748619149893,-420.0,0.00025753,2]
[363195037,1748619149903,-11481.25,0.00025753,2]
[363195038,1748619149912,-426.85,0.00025753,2]
[363195039,1748619149921,-1096.82,0.00025753,2]
[363195040,1748619149930,-857.17,0.00025753,2]
[363195041,1748619149940,-1626.19,0.00025753,2]
[363195042,1748619149949,-420.0,0.00025753,2]
[363195043,1748619149958,-634.02,0.00025753,2]
[363195044,1748619149966,-1507.45,0.00025753,2]
[363195045,1748619149975,-1283.49,0.00025753,2]
[363195046,1748619149984,-441.96,0.00025753,2]
[363195047,1748619149993,-532.67,0.00025753,2]
[363195048,1748619150002,-1018.57,0.00025753,2]
[363195049,1748619150012,-1122.87,0.00025753,2]
[363195050,1748619150021,-3197.32,0.00025753,2]
[363195051,1748619150030,-2066.87,0.00025753,2]
[363195052,1748619150039,-489.48,0.00025753,2]
[363195053,1748619150048,-461.31,0.00025753,2]
[363195054,1748619150058,-429.62,0.00025753,2]
[363195055,1748619150072,-3670.01,0.00025753,2]
[363195056,1748619150081,-805.58,0.00025753,2]
[363195057,1748619150090,-1386.9,0.00025753,2]
[363195058,1748619150099,-894.1,0.00025753,2]
[363195059,1748619150108,-2960.24,0.00025753,2]
[363195060,1748619150118,-1963.11,0.00025753,2]
[363195061,1748619150127,-906.34,0.00025753,2]
[363195062,1748619150136,-7808.56,0.00025753,2]
[363195063,1748619150145,-1068.95,0.00025753,2]
[363195064,1748619150155,-975.57,0.00025753,2]
[363195065,1748619150164,-1446.02,0.00025753,2]
[363195066,1748619150173,-1309.89,0.00025753,2]
[363195067,1748619150182,-5878.54,0.00025753,2]
[363195068,1748619150192,-591.35,0.00025753,2]
[363195069,1748619150201,-4452.28,0.00025753,2]
[363195070,1748619150211,-982.46,0.00025753,2]
[363195071,1748619150220,-8491.51,0.00025753,2]
[363195072,1748619150230,-958.4,0.00025753,2]
[363195073,1748619150239,-139506.04,0.00025753,2]
[363195074,1748619150249,-1033.36,0.00025753,2]
[363195075,1748619150258,-1343.03,0.00025753,2]
[363195076,1748619150268,-657.44,0.00025753,2]
[363195077,1748619150278,-453.46,0.00025753,2]
[363195078,1748619150288,-1623.73,0.00025753,2]
[363195079,1748619150298,-1032.71,0.00025753,2]
[363195080,1748619150307,-3547.4,0.00025753,2]
[363195081,1748619150322,-458.54,0.00025753,2]
[363195082,1748619150331,-982.85,0.00025753,2]
[363195083,1748619150341,-1005.97,0.00025753,2]
[363195084,1748619150351,-3804.58,0.00025753,2]
[363195085,1748619150360,-1623.36,0.00025753,2]
[363195086,1748619150369,-37354.79,0.00025753,2]
[363195087,1748619150379,-937.17,0.00025753,2]
[363195088,1748619150389,-1215.02,0.00025753,2]
[363195089,1748619150399,-753.84,0.00025753,2]
[363195090,1748619150408,-10069.56,0.00025753,2]
[363195091,1748619150418,-2424.56,0.00025753,2]
[363195092,1748619150427,-1684.99,0.00025753,2]
[363195093,1748619150437,-7476.47,0.00025753,2]
[363195094,1748619150446,-519.37,0.00025753,2]
[363195095,1748619150455,-628.41,0.00025753,2]
[363195096,1748619150465,-868.93,0.00025753,2]
[363195097,1748619150474,-422.51,0.00025753,2]
[363195098,1748619150484,-1449.88,0.00025753,2]
[363195099,1748619150494,-14516.45,0.00025753,2]
[363195100,1748619150504,-4266.56,0.00025753,2]
[363195101,1748619150514,-1548.49,0.00025753,2]
[363195102,1748619150523,-830.49,0.00025753,2]
[363195103,1748619150533,-1884.76,0.00025753,2]
[363195104,1748619150543,-593.44,0.00025753,2]
[363195105,1748619150553,-542.86,0.00025753,2]
[363195106,1748619150566,-510.86,0.00025753,2]
[363195107,1748619150576,-1709.24,0.00025753,2]
[363195108,1748619150586,-1978.38,0.00025753,2]
[363195109,1748619150595,-2758.03,0.00025753,2]
[363195110,1748619150605,-29722.14,0.00025753,2]
[363195111,1748619150614,-881.72,0.00025753,2]
[363195112,1748619150624,-1406.27,0.00025753,2]
[363195113,1748619150634,-1169.42,0.00025753,2]
[363195114,1748619150643,-1544.23,0.00025753,2]
[363195115,1748619150653,-826.36,0.00025753,2]
[363195116,1748619150663,-1175.33,0.00025753,2]
[363195117,1748619150672,-3295.64,0.00025753,2]
[363195118,1748619150682,-1761.11,0.00025753,2]
[363195119,1748619150692,-3573.53,0.00025753,2]
[363195120,1748619150701,-738.85,0.00025753,2]
[363195121,1748619150711,-1034.84,0.00025753,2]
[363195122,1748619150721,-1151.03,0.00025753,2]
[363195123,1748619150731,-9251.83,0.00025753,2]
[363195124,1748619150741,-660.71,0.00025753,2]
[363195125,1748619150751,-772.03,0.00025753,2]
[363195126,1748619150760,-420.0,0.00025753,2]
[363195127,1748619150771,-490.63,0.00025753,2]
[363195128,1748619150780,-720.83,0.00025753,2]
[363195129,1748619150790,-1360.32,0.00025753,2]
[363195130,1748619150800,-723.88,0.00025753,2]
[363195131,1748619150811,-567.24,0.00025753,2]
[363195132,1748619150824,-2486.32,0.00025753,2]
[363195133,1748619150834,-4470.51,0.00025753,2]
[363195134,1748619150844,-1446.13,0.00025753,2]
[363195135,1748619150854,-2304.2,0.00025753,2]
[363195136,1748619150864,-1389.12,0.00025753,2]
[363195137,1748619150874,-1054.71,0.00025753,2]
[363195138,1748619150883,-990.01,0.00025753,2]
[363195139,1748619150893,-1680.37,0.00025753,2]
[363195140,1748619150903,-521.76,0.00025753,2]
[363195141,1748619150913,-4095.54,0.00025753,2]
[363195142,1748619150923,-1486.66,0.00025753,2]
[363195143,1748619150932,-1336.51,0.00025753,2]
[363195144,1748619150942,-1487.37,0.00025753,2]
[363195145,1748619150952,-2771.35,0.00025753,2]
[363195146,1748619150962,-4189.49,0.00025753,2]
[363195147,1748619150972,-629.45,0.00025753,2]
[363195148,1748619150981,-2997.14,0.00025753,2]
[363195149,1748619150991,-1026.77,0.00025753,2]
[363195150,1748619151000,-1125.7,0.00025753,2]
[363195151,1748619151010,-614.16,0.00025753,2]
[363195152,1748619151020,-7561.37,0.00025753,2]
[363195153,1748619151029,-1258.89,0.00025753,2]
[363195154,1748619151039,-420.0,0.00025753,2]
[363195155,1748619151048,-1075.29,0.00025753,2]
[363195156,1748619151058,-760.57,0.00025753,2]
[363195157,1748619151072,-3180.63,0.00025753,2]
[363195158,1748619151081,-1927.78,0.00025753,2]
[363195159,1748619151091,-1656.75,0.00025753,2]
[363195160,1748619151102,-641.68,0.00025753,2]
[363195161,1748619151111,-420.0,0.00025753,2]
[363195162,1748619151121,-1318.91,0.00025753,2]
[363195163,1748619151131,-1139.98,0.00025753,2]
[363195164,1748619151140,-798.56,0.00025753,2]
[363195165,1748619151149,-1082.24,0.00025753,2]
[363195166,1748619151159,-718.05,0.00025753,2]
[363195167,1748619151169,-3419.97,0.00025753,2]
[363195168,1748619151179,-671.13,0.00025753,2]
[363195169,1748619151188,-1848.95,0.00025753,2]
[363195170,1748619151198,-2486.27,0.00025753,2]
[363195171,1748619151207,-1074.24,0.00025753,2]
[363195172,1748619151217,-1239.27,0.00025753,2]
[363195173,1748619151226,-420.0,0.00025753,2]
[363195174,1748619151236,-1822.33,0.00025753,2]
[363195175,1748619151245,-4083.38,0.00025753,2]
[363195176,1748619151255,-1501.86,0.00025753,2]
[363195177,1748619151265,-4025.56,0.00025753,2]
[363195178,1748619151274,-1358.16,0.00025753,2]
[363195179,1748619151284,-2713.7,0.00025753,2]
[363195180,1748619151294,-4868.11,0.00025753,2]
[363195181,1748619151304,-489.31,0.00025753,2]
[363195182,1748619151316,-742.91,0.00025753,2]
[363195183,1748619151325,-802.33,0.00025753,2]
[363195184,1748619151335,-937.93,0.00025753,2]
[363195185,1748619151348,-2531.82,0.00025753,2]
[363195186,1748619151357,-420.0,0.00025753,2]
[363195187,1748619151366,-420.0,0.00025753,2]
[363195188,1748619151376,-830.27,0.00025753,2]
[363195189,1748619151386,-703.73,0.00025753,2]
[363195190,1748619151396,-420.0,0.00025753,2]
[363195191,1748619151406,-7051.39,0.00025753,2]
[363195192,1748619151416,-622.77,0.00025753,2]
[363195193,1748619151426,-1538.8,0.00025753,2]
[363195194,1748619151436,-19030.44,0.00025753,2]
[363195195,1748619151446,-1325.56,0.00025753,2]
[363195196,1748619151456,-2716.47,0.00025753,2]
[363195197,1748619151466,-702.43,0.00025753,2]
[363195198,1748619151475,-735.86,0.00025753,2]
[363195199,1748619151485,-961.82,0.00025753,2]
[363195200,1748619151495,-760.22,0.00025753,2]
[363195201,1748619151504,-2783.11,0.00025753,2]
[363195202,1748619151514,-676.42,0.00025753,2]
[363195203,1748619151524,-734.54,0.00025753,2]
[363195204,1748619151535,-1264.47,0.00025753,2]
[363195205,1748619151545,-1663.09,0.00025753,2]
[363195206,1748619151554,-450.49,0.00025753,2]
[363195207,1748619151567,-6908.64,0.00025753,2]
[363195208,1748619151577,-1803.22,0.00025753,2]
[363195209,1748619151586,-420.0,0.00025753,2]
[363195210,1748619151597,-807.7,0.00025753,2]
[363195211,1748619151607,-3069.28,0.00025753,2]
[363195212,1748619151617,-466.47,0.00025753,2]
[363195213,1748619151626,-420.0,0.00025753,2]
[363195214,1748619151636,-1271.23,0.00025753,2]
[363195215,1748619151646,-2875.31,0.00025753,2]
[363195216,1748619151656,-152.0,0.00025753,2]
[363195217,1748619151666,-213.0,0.00025775,7]
[363195218,1748619151675,-21098.29,0.00025786,2]
[363195219,1748619151684,-4936.93,0.00025786,2]
[363195220,1748619151695,-4000.0,0.00025808,2]
[363195221,1748619151704,-500.0,0.00025821,2]
[363195222,1748619151714,-150.0,0.00025825,2]
[363195223,1748619151723,-980.858598,0.00025825,2]
[363195224,1748619151733,-1078.45113,0.00025825,2]
[363195225,1748619151743,-3292.0,0.00025826,2]
[363195226,1748619151753,-500.7,0.00025838,2]
[363195227,1748619151762,-6100.0,0.00025843,2]
[363195228,1748619151771,-500.0,0.00025869,2]
[363195229,1748619151780,-6100.0,0.00025898,2]
[363195230,1748619151790,-261038.46,0.000259,7]
[363195231,1748619151800,-9509.33,0.000259,7]
[363195232,1748619151809,-4049.5936825,0.000259,14]
[363195233,1748619152033,-500.0,0.00025935,2]
[363195234,1748619152060,-2000.0,0.00025938,2]
[363195235,1748619152074,-1500.0,0.00025943,2]
[363195236,1748619152084,-1500.0,0.00025956,2]
[363195237,1748619152094,-1500.0,0.00025959,2]
[363195238,1748619152103,-500.0,0.00025961,2]
[363195239,1748619152113,-581.45021011,0.0002599,2]
[363195240,1748619152123,-600.0,0.00025999,23]
[363195241,1748619152133,-4381.25518767,0.00026,2]
[363195242,1748619152143,-922.76882717,0.00026,2]
[363195243,1748619152153,-309.15037662,0.00026,2]
[363195244,1748619152162,-2110.0,0.00026,2]
[363195245,1748619152173,-4000.0,0.00026,4]
[363195246,1748619152183,-2744.2,0.0002602,2]
[363195247,1748619152192,-79492.5567991,0.00026025,2]
[363195248,1748619152202,-79492.5567991,0.00026025,2]
[363195249,1748619152212,-79492.5567991,0.00026025,2]
[363195250,1748619152222,-79492.5567991,0.00026025,2]
[363195251,1748619152231,-150.0,0.00026025,2]
[363195252,1748619152241,-980.858598,0.00026025,2]
[363195253,1748619152251,-1078.45113,0.00026025,2]
[363195254,1748619152260,-420.0,0.00026027,2]
[363195255,1748619152269,-420.0,0.00026027,2]
[363195256,1748619152279,-441.8,0.00026027,2]
[363195257,1748619152289,-591.36,0.00026027,2]
[363195258,1748619152299,-468.16,0.00026027,2]
[363195259,1748619152309,-451.1,0.00026027,2]
[363195260,1748619152322,-420.3,0.00026027,2]
[363195261,1748619152331,-420.0,0.00026027,2]
[363195262,1748619152341,-853.41,0.00026027,2]
[363195263,1748619152351,-420.0,0.00026027,2]
[363195264,1748619152360,-525.07,0.00026027,2]
[363195265,1748619152370,-420.0,0.00026027,2]
[363195266,1748619152381,-502.76,0.00026027,2]
[363195267,1748619152390,-1167.56,0.00026027,2]
[363195268,1748619152400,-769.78,0.00026027,2]
[363195269,1748619152410,-499.23,0.00026027,2]
[363195270,1748619152419,-420.0,0.00026027,2]
[363195271,1748619152429,-531.83,0.00026027,2]
[363195272,1748619152438,-420.0,0.00026027,2]
[363195273,1748619152448,-479.53,0.00026027,2]
[363195274,1748619152458,-753.24,0.00026027,2]
[363195275,1748619152467,-265.73,0.00026027,2]
[363195276,1748619152477,-476.72,0.00026027,2]
[363195277,1748619152487,-420.0,0.00026027,2]
[363195278,1748619152497,-571.1,0.00026027,2]
[363195279,1748619152506,-420.0,0.00026027,2]
[363195280,1748619152516,-908.97,0.00026027,2]
[363195281,1748619152526,-420.0,0.00026027,2]
[363195282,1748619152536,-420.0,0.00026027,2]
[363195283,1748619152546,-432.46,0.00026027,2]
[363195284,1748619152556,-420.0,0.00026027,2]
[363195285,1748619152568,-420.0,0.00026027,2]
[363195286,1748619152578,-420.0,0.00026027,2]
[363195287,1748619152587,-2098.6,0.00026027,2]
[363195288,1748619152597,-490.07,0.00026027,2]
[363195289,1748619152607,-770.69,0.00026027,2]
[363195290,1748619152616,-420.0,0.00026027,2]
[363195291,1748619152626,-890.15,0.00026027,2]
[363195292,1748619152637,-420.86,0.00026027,2]
[363195293,1748619152647,-426.87,0.00026027,2]
[363195294,1748619152656,-424.91,0.00026027,2]
[363195295,1748619152667,-429.06,0.00026027,2]
[363195296,1748619152677,-758.53,0.00026027,2]
[363195297,1748619152687,-420.0,0.00026027,2]
[363195298,1748619152696,-772.94,0.00026027,2]
[363195299,1748619152707,-420.0,0.00026027,2]
[363195300,1748619152716,-427.85,0.00026027,2]
[363195301,1748619152726,-420.0,0.00026027,2]
[363195302,1748619152736,-456.87,0.00026027,2]
[363195303,1748619152747,-420.0,0.00026027,2]
[363195304,1748619152756,-428.201074,0.00026027,2]
[363195305,1748619152767,-420.0,0.00026027,2]
[363195306,1748619152777,-420.0,0.00026027,2]
[363195307,1748619152787,-420.0,0.00026027,2]
[363195308,1748619152796,-777.89,0.00026027,2]
[363195309,1748619152806,-863.65,0.00026027,2]
[363195310,1748619152820,-1819.65,0.00026027,2]
[363195311,1748619152830,-1212.65,0.00026027,2]
[363195312,1748619152840,-1175.81,0.00026027,2]
[363195313,1748619152849,-553.05,0.00026027,2]
[363195314,1748619152861,-796.08,0.00026027,2]
[363195315,1748619152871,-523.03,0.00026027,2]
[363195316,1748619152881,-501.69,0.00026027,2]
[363195317,1748619152891,-1811.35,0.00026027,2]
[363195318,1748619152901,-420.0,0.00026027,2]
[363195319,1748619152911,-822.17,0.00026027,2]
[363195320,1748619152920,-496.62,0.00026027,2]
[363195321,1748619152930,-641.0,0.00026027,2]
[363195322,1748619152940,-847.29,0.00026027,2]
[363195323,1748619152950,-420.0,0.00026027,2]
[363195324,1748619152959,-420.0,0.00026027,2]
[363195325,1748619152969,-1102.55,0.00026027,2]
[363195326,1748619152979,-443.43,0.00026027,2]
[363195327,1748619152989,-420.0,0.00026027,2]
[363195328,1748619152998,-443.13,0.00026027,2]
[363195329,1748619153008,-751.91,0.00026027,2]
[363195330,1748619153019,-420.0,0.00026027,2]
[363195331,1748619153029,-518.42,0.00026027,2]
[363195332,1748619153039,-1711.43,0.00026027,2]
[363195333,1748619153048,-841.83,0.00026027,2]
[363195334,1748619153058,-1199.0,0.00026027,2]
[363195335,1748619153071,-508.53,0.00026027,2]
[363195336,1748619153081,-948.67,0.00026027,2]
[363195337,1748619153091,-610.77,0.00026027,2]
[363195338,1748619153101,-2171.03,0.00026027,2]
[363195339,1748619153110,-420.0,0.00026027,2]
[363195340,1748619153120,-572.48,0.00026027,2]
[363195341,1748619153129,-945.97,0.00026027,2]
[363195342,1748619153140,-1319.71,0.00026027,2]
[363195343,1748619153149,-456.76,0.00026027,2]
[363195344,1748619153159,-1456.24,0.00026027,2]
[363195345,1748619153168,-636.09,0.00026027,2]
[363195346,1748619153179,-743.92,0.00026027,2]
[363195347,1748619153189,-853.5,0.00026027,2]
[363195348,1748619153199,-1258.56,0.00026027,2]
[363195349,1748619153209,-652.14,0.00026027,2]
[363195350,1748619153218,-569.93,0.00026027,2]
[363195351,1748619153228,-1419.49,0.00026027,2]
[363195352,1748619153237,-584.74,0.00026027,2]
[363195353,1748619153247,-755.51,0.00026027,2]
[363195354,1748619153257,-582.04,0.00026027,2]
[363195355,1748619153267,-420.0,0.00026027,2]
[363195356,1748619153277,-781.6,0.00026027,2]
[363195357,1748619153287,-1041.01,0.00026027,2]
[363195358,1748619153296,-1369.52,0.00026027,2]
[363195359,1748619153306,-474.65,0.00026027,2]
[363195360,1748619153318,-463.6,0.00026027,2]
[363195361,1748619153329,-1379.11,0.00026027,2]
[363195362,1748619153339,-420.0,0.00026027,2]
[363195363,1748619153349,-666.7,0.00026027,2]
[363195364,1748619153359,-576.82,0.00026027,2]
[363195365,1748619153370,-1319.43,0.00026027,2]
[363195366,1748619153380,-693.89,0.00026027,2]
[363195367,1748619153390,-741.8,0.00026027,2]
[363195368,1748619153400,-561.65,0.00026027,2]
[363195369,1748619153410,-1160.92,0.00026027,2]
[363195370,1748619153420,-472.93,0.00026027,2]
[363195371,1748619153430,-1166.17,0.00026027,2]
[363195372,1748619153440,-1207.82,0.00026027,2]
[363195373,1748619153450,-1168.26,0.00026027,2]
[363195374,1748619153460,-420.0,0.00026027,2]
[363195375,1748619153470,-420.0,0.00026027,2]
[363195376,1748619153480,-466.98,0.00026027,2]
[363195377,1748619153492,-784.43,0.00026027,2]
[363195378,1748619153501,-1364.89,0.00026027,2]
[363195379,1748619153511,-723.56,0.00026027,2]
[363195380,1748619153521,-801.75,0.00026027,2]
[363195381,1748619153531,-604.61,0.00026027,2]
[363195382,1748619153541,-587.51,0.00026027,2]
[363195383,1748619153550,-635.16,0.00026027,2]
[363195384,1748619153560,-1137.25,0.00026027,2]
[363195385,1748619153575,-786.55,0.00026027,2]
[363195386,1748619153584,-862.94,0.00026027,2]
[363195387,1748619153595,-420.0,0.00026027,2]
[363195388,1748619153605,-523.95,0.00026027,2]
[363195389,1748619153615,-1160.03,0.00026027,2]
[363195390,1748619153625,-673.65,0.00026027,2]
[363195391,1748619153635,-931.25,0.00026027,2]
[363195392,1748619153645,-420.0,0.00026027,2]
[363195393,1748619153655,-552.42,0.00026027,2]
[363195394,1748619153665,-459.7,0.00026027,2]
[363195395,1748619153675,-1724.07,0.00026027,2]
[363195396,1748619153685,-420.0,0.00026027,2]
[363195397,1748619153695,-600.48,0.00026027,2]
[363195398,1748619153705,-726.29,0.00026027,2]
[363195399,1748619153715,-472.86,0.00026027,2]
[363195400,1748619153725,-1073.36,0.00026027,2]
[363195401,1748619153736,-832.22,0.00026027,2]
[363195402,1748619153745,-576.09,0.00026027,2]
[363195403,1748619153755,-1371.43,0.00026027,2]
[363195404,1748619153764,-1079.44,0.00026027,2]
[363195405,1748619153774,-538.33,0.00026027,2]
[363195406,1748619153783,-590.55,0.00026027,2]
[363195407,1748619153793,-971.8,0.00026027,2]
[363195408,1748619153803,-476.32,0.00026027,2]
[363195409,1748619153818,-550.23,0.00026027,2]
[363195410,1748619153829,-420.0,0.00026027,2]
[363195411,1748619153839,-502.51869071,0.00026027,2]
[363195412,1748619153849,-2381.24,0.00026027,2]
[363195413,1748619153859,-523.75,0.00026027,2]
[363195414,1748619153870,-1073.24,0.00026027,2]
[363195415,1748619153881,-659.08,0.00026027,2]
[363195416,1748619153891,-535.46,0.00026027,2]
[363195417,1748619153902,-420.0,0.00026027,2]
[363195418,1748619153913,-569.05,0.00026027,2]
[363195419,1748619153924,-420.0,0.00026027,2]
[363195420,1748619153934,-808.94,0.00026027,2]
[363195421,1748619153944,-1940.81,0.00026027,2]
[363195422,1748619153953,-463.09,0.00026027,2]
[363195423,1748619153963,-627.54,0.00026027,2]
[363195424,1748619153973,-420.0,0.00026027,2]
[363195425,1748619153984,-1123.75,0.00026027,2]
[363195426,1748619153994,-487.89,0.00026027,2]
[363195427,1748619154005,-539.2,0.00026027,2]
[363195428,1748619154015,-420.0,0.00026027,2]
[363195429,1748619154026,-420.0,0.00026027,2]
[363195430,1748619154036,-1124.04,0.00026027,2]
[363195431,1748619154046,-553.55,0.00026027,2]
[363195432,1748619154056,-1448.39,0.00026027,2]
[363195433,1748619154070,-1053.3,0.00026027,2]
[363195434,1748619154079,-584.13,0.00026027,2]
[363195435,1748619154089,-1192.82,0.00026027,2]
[363195436,1748619154099,-613.48,0.00026027,2]
[363195437,1748619154109,-420.0,0.00026027,2]
[363195438,1748619154119,-491.19,0.00026027,2]
[363195439,1748619154128,-561.99,0.00026027,2]
[363195440,1748619154138,-466.46,0.00026027,2]
[363195441,1748619154148,-1678.06,0.00026027,2]
[363195442,1748619154159,-420.0,0.00026027,2]
[363195443,1748619154170,-420.0,0.00026027,2]
[363195444,1748619154180,-1400.08,0.00026027,2]
[363195445,1748619154191,-600.46,0.00026027,2]
[363195446,1748619154201,-626.74,0.00026027,2]
[363195447,1748619154212,-729.19,0.00026027,2]
[363195448,1748619154221,-1178.79,0.00026027,2]
[363195449,1748619154231,-849.19,0.00026027,2]
[363195450,1748619154242,-1833.03,0.00026027,2]
[363195451,1748619154252,-558.24,0.00026027,2]
[363195452,1748619154262,-633.87,0.00026027,2]
[363195453,1748619154272,-465.46,0.00026027,2]
[363195454,1748619154282,-420.0,0.00026027,2]
[363195455,1748619154292,-3634.58,0.00026027,2]
[363195456,1748619154302,-1085.24,0.00026027,2]
[363195457,1748619154316,-2016.38,0.00026027,2]
[363195458,1748619154327,-609.8,0.00026027,2]
[363195459,1748619154337,-1168.36,0.00026027,2]
[363195460,1748619154347,-5361.86,0.00026027,2]
[363195461,1748619154358,-2127.16,0.00026027,2]
[363195462,1748619154367,-1484.06,0.00026027,2]
[363195463,1748619154378,-296.57541356,0.00026027,2]
[363195464,1748619154388,-1109.67,0.00026027,2]
[363195465,1748619154398,-614.8,0.00026027,2]
[363195466,1748619154408,-575.02,0.00026027,2]
[363195467,1748619154417,-674.8,0.00026027,2]
[363195468,1748619154427,-562.44,0.00026027,2]
[363195469,1748619154437,-420.0,0.00026027,2]
[363195470,1748619154447,-1824.08,0.00026027,2]
[363195471,1748619154457,-420.0,0.00026027,2]
[363195472,1748619154467,-904.81,0.00026027,2]
[363195473,1748619154477,-490.58,0.00026027,2]
[363195474,1748619154487,-7075.98,0.00026027,2]
[363195475,1748619154496,-723.21,0.00026027,2]
[363195476,1748619154506,-420.0,0.00026027,2]
[363195477,1748619154515,-1561.66,0.00026027,2]
[363195478,1748619154524,-9812.16,0.00026027,2]
[363195479,1748619154534,-1096.87,0.00026027,2]
[363195480,1748619154543,-1075.43,0.00026027,2]
[363195481,1748619154553,-622.82,0.00026027,2]
[363195482,1748619154563,-1429.73,0.00026027,2]
[363195483,1748619154580,-915.42,0.00026027,2]
[363195484,1748619154592,-11863.32,0.00026027,2]
[363195485,1748619154604,-1946.94,0.00026027,2]
[363195486,1748619154615,-594.91,0.00026027,2]
[363195487,1748619154625,-1167.97,0.00026027,2]
[363195488,1748619154636,-797.36,0.00026027,2]
[363195489,1748619154647,-5682.0,0.00026027,2]
[363195490,1748619154658,-524.77,0.00026027,2]
[363195491,1748619154669,-1550.77,0.00026027,2]
[363195492,1748619154679,-974.63,0.00026027,2]
[363195493,1748619154689,-655.87,0.00026027,2]
[363195494,1748619154699,-702.81,0.00026027,2]
[363195495,1748619154710,-600.66,0.00026027,2]
[363195496,1748619154719,-1024.75,0.00026027,2]
[363195497,1748619154729,-609.69,0.00026027,2]
[363195498,1748619154739,-420.0,0.00026027,2]
[363195499,1748619154749,-1076.37,0.00026027,2]
[363195500,1748619154759,-464.14,0.00026027,2]
[363195501,1748619154768,-420.0,0.00026027,2]
[363195502,1748619154778,-1708.68,0.00026027,2]
[363195503,1748619154789,-476.72,0.00026027,2]
[363195504,1748619154799,-726.29,0.00026027,2]
[363195505,1748619154809,-1013.34,0.00026027,2]
[363195506,1748619154824,-850.36,0.00026027,2]
[363195507,1748619154834,-9498.11,0.00026027,2]
[363195508,1748619154844,-829.87,0.00026027,2]
[363195509,1748619154855,-1568.21,0.00026027,2]
[363195510,1748619154865,-997.73,0.00026027,2]
[363195511,1748619154875,-717.62,0.00026027,2]
[363195512,1748619154885,-862.79,0.00026027,2]
[363195513,1748619154896,-657.91,0.00026027,2]
[363195514,1748619154908,-985.32,0.00026027,2]
[363195515,1748619154918,-2137.81,0.00026027,2]
[363195516,1748619154927,-420.0,0.00026027,2]
[363195517,1748619154937,-420.0,0.00026027,2]
[363195518,1748619154947,-541.52,0.00026027,2]
[363195519,1748619154957,-1399.41,0.00026027,2]
[363195520,1748619154967,-1150.73,0.00026027,2]
[363195521,1748619154978,-420.0,0.00026027,2]
[363195522,1748619154987,-2296.95,0.00026027,2]
[363195523,1748619154998,-682.72,0.00026027,2]
[363195524,1748619155008,-795.59,0.00026027,2]
[363195525,1748619155018,-575.16,0.00026027,2]
[363195526,1748619155028,-3116.89,0.00026027,2]
[363195527,1748619155038,-1061.77,0.00026027,2]
[363195528,1748619155048,-1233.85,0.00026027,2]
[363195529,1748619155057,-420.0,0.00026027,2]
[363195530,1748619155069,-11481.25,0.00026027,2]
[363195531,1748619155079,-426.85,0.00026027,2]
[363195532,1748619155088,-1096.82,0.00026027,2]